fUST/lending_fUST_20250810
["ID","MTS","AMOUNT","RATE_DAILY","PERIOD"]
[378272495,1754810412186,160.0,0.0002,3]
[378272496,1754810451704,1379.0,0.00021,2]
[378272497,1754810534910,400.0,0.00027397,120]
[378272498,1754810537590,400.0,0.00030137,120]
[378272500,1754810600359,1300.49748952,0.000199,2]
[378272501,1754810617069,156.38,0.00031455,30]
[378272502,1754810670051,150.5,0.0002398,120]
[378272503,1754810670611,150.5,0.0002397,120]
[378272504,1754810671013,150.5,0.0002396,120]
[378272505,1754810671452,150.5,0.0002479,120]
[378272506,1754810671957,150.5,0.0002478,120]
[378272507,1754810672405,150.5,0.0002477,120]
[378272508,1754810672828,162.95,0.0002979,120]
[378272509,1754810674548,201.767696,0.00013699,2]
[378272510,1754810674759,201.767696,0.00020187,2]
[378272512,1754810717629,151.0,0.00028361,120]
[378272513,1754810729457,160.0,0.0002,3]
[378272514,1754810729873,160.0,0.0002,3]
[378272515,1754810739552,12214.68417503,0.00020938,2]
[378272516,1754810739575,8301.7182373,0.00020938,2]
[378272518,1754810747881,1000.0,0.0003,120]
[378272519,1754810748979,1000.0,0.0003,120]
[378272520,1754810751005,1000.0,0.0003,120]
[378272523,1754810755875,1000.0,0.0003,120]
[378272524,1754810758676,1000.0,0.0003,120]
[378272525,1754810761544,1000.0,0.0003,120]
[378272526,1754810763888,1000.0,0.0003,120]
[378272527,1754810763987,1000.0,0.0003,120]
[378272528,1754810766707,1000.0,0.0003,120]
[378272531,1754810774276,8691.76,0.00031455,30]
[378272532,1754810786645,1000.0,0.0003,120]
[378272533,1754810787236,24900.0,0.00020266,2]
[378272534,1754810791662,2228.85527829,0.000199,2]
[378272535,1754810804663,182.64368258,0.000222,69]
[378272536,1754810809477,1379.0,0.00023,60]
[378272537,1754810840401,204.93336379,0.00021,8]
[378272538,1754810842707,153.34587183,0.00031455,60]
[378272539,1754810850094,400.0,0.00027397,120]
[378272540,1754810850454,400.0,0.00030137,120]
[378272541,1754810850788,1150.48392583,0.00031455,120]
[378272542,1754810858361,4929.86796076,0.00031455,30]
[378272543,1754810862914,935.59062441,0.00031455,120]
[378272544,1754810864112,215.90479317,0.00031455,30]
[378272545,1754810864675,278.14523505,0.00031455,120]
[378272546,1754810867612,1498.75879134,0.00031455,30]
[378272547,1754810868010,204.26010824,0.00031455,30]
[378272548,1754810869090,1615.32653315,0.000259,120]
[378272549,1754810876773,150.52844408,8.6e-07,2]
[378272550,1754810876892,150.52844408,8.6e-07,2]
[378272551,1754810876992,150.52844408,8.6e-07,2]
[378272552,1754810877193,150.52844408,8.6e-07,2]
[378272553,1754810877292,150.52844408,8.6e-07,2]
[378272554,1754810877393,150.52844408,8.6e-07,2]
[378272555,1754810877489,150.52844408,8.6e-07,2]
[378272556,1754810877581,150.52844408,8.6e-07,2]
[378272557,1754810877690,150.52844408,8.6e-07,2]
[378272558,1754810882111,1837.19059523,0.00031455,60]
[378272559,1754810882457,1190.57856911,0.00031455,30]
[378272560,1754810886084,507.58810018,0.0003,120]
[378272561,1754810886269,2383.35916278,0.00031455,32]
[378272562,1754810886396,856.60520163,0.00031455,120]
[378272563,1754810891093,273.26712277,0.00031455,120]
[378272564,1754810892256,649.39598021,0.00031455,120]
[378272565,1754810892741,2055.20786325,0.00019205,5]
[378272566,1754810892981,974.33730996,0.00031455,120]
[378272567,1754810895301,1057.05809776,0.00031455,120]
[378272568,1754810898556,188.0,0.0002,120]
[378272569,1754810900409,220.46026117,0.00020602,2]
[378272570,1754810900865,1437.12070785,0.00031455,120]
[378272571,1754810901150,925.195918,0.00031455,120]
[378272572,1754810903441,437.56174461,0.00031455,120]
[378272573,1754810904565,314.94403895,7e-05,120]
[378272574,1754810907322,450.14254594,0.00031455,120]
[378272575,1754810908827,2193.88848866,0.00031455,120]
[378272576,1754810909350,853.37899614,0.00031455,120]
[378272577,1754810910176,746.77585672,0.00031455,120]
[378272578,1754810910597,697.73642072,0.00031455,120]
[378272579,1754810911636,7596.73814048,0.00031455,120]
[378272580,1754810911890,240.82074905,0.00031455,120]
[378272581,1754810912113,1870.954,0.00027397,120]
[378272582,1754810912146,3661.55441231,0.00031455,60]
[378272583,1754810912322,217.14341152,0.00031455,30]
[378272584,1754810912610,1289.16290465,0.00025,120]
[378272585,1754810912875,1430.0531925,0.00027408,120]
[378272586,1754810913003,157.92411906,0.0003,120]
[378272587,1754810913457,244.60163896,0.00031455,120]
[378272588,1754810913858,610.41969549,0.00031455,120]
[378272589,1754810913967,10302.00085412,0.00031455,30]
[378272590,1754810914454,2542.02241448,0.00031455,120]
[378272591,1754810914662,2000.0,0.00031455,120]
[378272592,1754810914726,245.27583168,0.00031455,30]
[378272593,1754810914758,3088.66997708,0.00031455,120]
[378272594,1754810914936,630.18961586,0.00031455,30]
[378272595,1754810915324,341.92172353,0.00031455,120]
[378272596,1754810915421,1111.80080768,0.00031455,120]
[378272597,1754810915832,660.27816619,0.00031455,30]
[378272598,1754810916081,1411.40821974,0.0003,120]
[378272599,1754810916115,497.43450215,0.00024108,120]
[378272600,1754810916147,596.21101203,0.00030136,120]
[378272601,1754810916280,179.90260669,0.00025,120]
[378272602,1754810916311,211.04381596,0.0002,20]
[378272603,1754810916886,1849.98386118,0.00031455,30]
[378272604,1754810917087,2627.58267364,0.00031455,120]
[378272605,1754810917467,560.0041361,0.00031455,120]
[378272606,1754810917500,216.49137769,0.0003,120]
[378272607,1754810917820,2462.75777644,0.00028,120]
[378272608,1754810918089,188.93078097,0.0003,120]
[378272609,1754810918652,1017.74465484,0.00031455,120]
[378272610,1754810919009,1447.72442508,0.00031455,120]
[378272611,1754810919128,206.90652539,0.00031455,30]
[378272612,1754810919190,254.86454857,0.00031455,120]
[378272613,1754810919224,400.28115298,0.00031455,120]
[378272614,1754810919261,469.08233332,0.00031455,120]
[378272615,1754810919452,1081.25050872,0.00031455,120]
[378272616,1754810919619,1861.559499,0.00031455,60]
[378272617,1754810919827,1578.98164573,0.00031455,120]
[378272618,1754810920158,204.29432755,0.00027,120]
[378272619,1754810920268,970.70602335,0.00031455,30]
[378272620,1754810920327,649.93811664,0.00031455,120]
[378272621,1754810920438,3149.00725515,0.00031455,120]
[378272622,1754810920468,430.82854605,0.00031455,120]
[378272623,1754810920638,1105.68756475,0.00031455,120]
[378272624,1754810920752,218.06876916,0.00031455,120]
[378272625,1754810921102,523.02518352,0.0002,10]
[378272626,1754810921125,6712.94692055,0.0002,10]
[378272627,1754810921208,1787.05756252,0.00029,120]
[378272628,1754810921447,2101.9244901,0.00031455,120]
[378272629,1754810921604,1508.41471114,0.00031455,30]
[378272630,1754810921866,1876.67321228,0.00025,120]
[378272631,1754810921897,320.14356459,0.00031455,120]
[378272632,1754810922164,205.79445818,0.00031455,120]
[378272633,1754810922262,179.57414854,0.00031455,30]
[378272634,1754810922798,1971.79656106,0.00024,120]
[378272635,1754810922831,1875.63636871,0.00018,120]
[378272636,1754810922937,2024.67513104,0.0003,120]
[378272637,1754810922977,1007.52054882,0.00028767,120]
[378272638,1754810923149,2273.17728465,0.00031455,30]
[378272639,1754810923242,289.24308499,0.00027397,120]
[378272640,1754810923436,178.45147783,0.00031455,30]
[378272641,1754810923513,220.96094126,0.0001536,120]
[378272642,1754810923705,164.18485524,0.00031455,120]
[378272643,1754810924070,503.76512,0.00031455,120]
[378272644,1754810924233,537.61988222,0.00031455,120]
[378272645,1754810924289,906.37872308,0.000295,120]
[378272646,1754810924720,1075.7349313,0.00021,2]
[378272647,1754810924752,181.745511,0.00031455,30]
[378272648,1754810924813,2003.75169631,0.00031455,120]
[378272649,1754810924897,557.99855065,0.00031455,30]
[378272650,1754810925426,221.58104986,0.00031455,120]
[378272651,1754810925595,183.93552237,0.00027,120]
[378272652,1754810925627,2174.70064379,0.00031455,60]
[378272653,1754810925671,1936.19754011,0.00027,120]
[378272654,1754810925847,6429.68016101,0.00031455,120]
[378272655,1754810925880,2076.20827983,0.00031455,30]
[378272656,1754810925919,809.99999901,0.0003,120]
[378272657,1754810925951,1515.5345984,0.00031455,30]
[378272658,1754810926172,708.44077905,0.00026,120]
[378272659,1754810926603,296.55871126,0.00024,120]
[378272660,1754810926673,1875.0,0.00031455,120]
[378272662,1754810926788,2067.6930568,0.000274,120]
[378272663,1754810926827,1218.08859386,0.0003,120]
[378272664,1754810926891,423.71660614,0.00025,120]
[378272665,1754810927056,1681.6278112,0.00031455,120]
[378272666,1754810927171,300.0,0.00031455,30]
[378272667,1754810927271,2248.60933437,0.0003,120]
[378272668,1754810927435,192.46814318,0.00031455,120]
[378272669,1754810927466,190.04894025,0.0003,120]
[378272670,1754810927823,2610.54974879,0.00031455,120]
[378272671,1754810927927,1767.66294492,0.00031455,120]
[378272672,1754810927993,2722.2380414,0.00023,120]
[378272673,1754810928127,513.6019233,0.00031455,120]
[378272674,1754810978920,1653.39124192,0.000199,2]
[378272675,1754810989165,172.20786423,0.00029041,120]
[378272685,1754811032657,-1200.0,0.00021037,2]
[378272686,1754811032666,-159.74,0.00021038,2]
[378272687,1754811032675,-1311.53369129,0.00021038,2]
[378272737,1754811038517,-3331.98447647,0.00021038,2]
[378272739,1754811038529,-103.06183224,0.00021038,2]
[378272741,1754811038539,-460.0,0.00021038,2]
[378272743,1754811038549,-516.63,0.00021038,2]
[378272744,1754811038558,-353.08581671,0.00021141,2]
[378272745,1754811038570,-2309.28825267,0.00021141,2]
[378272747,1754811038579,-460.0,0.00021238,2]
[378272749,1754811038588,-460.0,0.00021238,2]
[378272751,1754811038597,-460.77697926,0.00021239,2]
[378272752,1754811038607,-460.0,0.00021239,2]
[378272755,1754811038616,-461.01304388,0.00021239,2]
[378272757,1754811038626,-500.70928757,0.00021239,2]
[378272759,1754811038635,-460.0,0.00021239,2]
[378272760,1754811038644,-461.33834837,0.00021239,2]
[378272761,1754811038654,-460.0,0.00021239,2]
[378272762,1754811038663,-460.0,0.00021239,2]
[378272763,1754811038673,-460.0,0.00021239,2]
[378272765,1754811038683,-460.0,0.00021239,2]
[378272767,1754811038693,-460.0,0.00021239,2]
[378272769,1754811038702,-460.0,0.00021239,2]
[378272771,1754811038711,-460.0,0.00021239,2]
[378272773,1754811038720,-282.01293995,0.00021239,2]
[378272775,1754811038730,-460.0,0.00021239,2]
[378272777,1754811038739,-460.0,0.00021239,2]
[378272779,1754811038748,-473.30154696,0.00021239,2]
[378272781,1754811038758,-460.0,0.00021239,2]
[378272783,1754811038767,-442.00865066,0.00021239,2]
[378272785,1754811038776,-460.0,0.00021239,2]
[378272787,1754811038785,-41.70530724,0.00021239,2]
[378272789,1754811038797,-458.29469276,0.00021239,2]
[378272791,1754811038807,-378.63,0.00021239,2]
[378272793,1754811038816,-412.21,0.00021239,2]
[378272795,1754811038825,-460.0,0.00021239,2]
[378272797,1754811038835,-460.0,0.00021239,2]
[378272799,1754811038844,-460.0,0.00021239,2]
[378272801,1754811038854,-460.0,0.00021239,2]
[378272803,1754811038863,-460.0,0.00021239,2]
[378272805,1754811038872,-75.86530724,0.00021239,2]
[378272807,1754811038884,-384.13469276,0.00021239,2]
[378272809,1754811038893,-460.0,0.00021239,2]
[378272811,1754811038903,-460.0,0.00021239,2]
[378272813,1754811038912,-460.0,0.00021239,2]
[378272815,1754811038922,-241.28017207,0.00021239,2]
[378272818,1754811038935,-218.71982793,0.00021239,2]
[378272820,1754811038945,-461.45396177,0.00021239,2]
[378272822,1754811038955,-528.18,0.00021239,2]
[378272824,1754811038964,-460.0,0.00021239,2]
[378272826,1754811038974,-135.42965593,0.00021239,2]
[378272828,1754811038986,-324.57034407,0.00021239,2]
[378272830,1754811038995,-175.67466108,0.00021239,2]
[378272832,1754811039004,-460.0,0.00021239,2]
[378272834,1754811039014,-460.0,0.00021239,2]
[378272836,1754811039024,-460.0,0.00021239,2]
[378272837,1754811039036,-460.0,0.00021239,2]
[378272838,1754811039046,-462.01522854,0.00021239,2]
[378272840,1754811039056,-388.54820801,0.00021239,2]
[378272841,1754811039066,-1.35170053,0.00021239,2]
[378272842,1754811039078,-458.64829947,0.00021239,2]
[378272843,1754811039087,-460.0,0.00021239,2]
[378272844,1754811039097,-460.0,0.00021239,2]
[378272845,1754811039107,-460.0,0.00021239,2]
[378272846,1754811039116,-466.03823078,0.00021239,2]
[378272847,1754811039126,-460.0,0.00021239,2]
[378272848,1754811039135,-500.0,0.00021239,2]
[378272849,1754811039145,-500.0,0.00021239,2]
[378272850,1754811039155,-500.0,0.00021239,2]
[378272851,1754811039165,-500.0,0.00021239,2]
[378272852,1754811039178,-507.0659644,0.00021239,2]
[378272853,1754811039189,-500.0,0.00021239,2]
[378272854,1754811039200,-130.50842722,0.00021239,2]
[378272855,1754811039212,-369.49157278,0.00021239,2]
[378272856,1754811039222,-500.0,0.00021239,2]
[378272857,1754811039232,-294.33060734,0.00021239,2]
[378272858,1754811039241,-500.0,0.00021239,2]
[378272859,1754811039251,-500.0,0.00021239,2]
[378272860,1754811039262,-500.0,0.00021239,2]
[378272861,1754811039273,-359.71601904,0.00021239,2]
[378272862,1754811039284,-460.0,0.0002124,2]
[378272863,1754811039293,-460.0,0.0002124,2]
[378272864,1754811039303,-460.68890505,0.0002124,2]
[378272865,1754811039313,-460.0,0.0002124,2]
[378272866,1754811039323,-460.0,0.0002124,2]
[378272867,1754811039332,-460.0,0.0002124,2]
[378272868,1754811039342,-999.50024988,0.0002124,2]
[378272869,1754811039352,-460.0,0.0002124,2]
[378272870,1754811039361,-461.6771346,0.0002124,2]
[378272871,1754811039371,-288.38325421,0.0002124,2]
[378272872,1754811039380,-470.13552051,0.0002124,2]
[378272873,1754811039390,-460.0,0.0002124,2]
[378272874,1754811039400,-337.12099963,0.0002124,2]
[378272875,1754811039409,-460.0,0.0002124,2]
[378272876,1754811039419,-462.37179759,0.0002124,2]
[378272877,1754811039429,-460.0,0.0002124,2]
[378272878,1754811039439,-327.90938871,0.0002124,2]
[378272879,1754811039452,-132.09061129,0.0002124,2]
[378272880,1754811039461,-460.0,0.0002124,2]
[378272881,1754811039470,-460.0,0.0002124,2]
[378272882,1754811039479,-460.0,0.0002124,2]
[378272883,1754811039488,-460.0,0.0002124,2]
[378272884,1754811039498,-459.98832105,0.0002124,2]
[378272885,1754811039507,-1000.0,0.0002124,2]
[378272886,1754811039517,-460.0,0.0002124,2]
[378272887,1754811039526,-460.0,0.0002124,2]
[378272888,1754811039536,-460.0,0.0002124,2]
[378272889,1754811039547,-460.0,0.0002124,2]
[378272890,1754811039556,-460.65155546,0.0002124,2]
[378272891,1754811039566,-460.0,0.0002124,2]
[378272892,1754811039575,-460.0,0.0002124,2]
[378272893,1754811039585,-315.13045371,0.0002124,2]
[378272899,1754811040669,-144.86954629,0.0002124,2]
[378272900,1754811040679,-242.28899979,0.0002124,2]
[378272910,1754811043825,160.0,0.0002,3]
[378272920,1754811046738,-217.71100021,0.0002124,2]
[378272921,1754811046748,-118.6989998,0.0002124,2]
[378272922,1754811134777,271.924465,0.00020239,2]
[378272923,1754811151943,1000.0,0.00031455,30]
[378272924,1754811152338,1000.0,0.00031455,30]
[378272925,1754811152673,1000.0,0.00031455,30]
[378272926,1754811153120,1271.056487,0.00031455,30]
[378272927,1754811160147,400.0,0.00027397,120]
[378272928,1754811160490,400.0,0.00030137,120]
[378272929,1754811192555,1744.95312442,0.000199,2]
[378272930,1754811211190,6100.0,0.00031455,30]
[378272931,1754811293720,5023.74791231,0.00031455,120]
[378272933,1754811312204,155.0,0.00024757,120]
[378272934,1754811313498,155.0,0.00027233,120]
[378272935,1754811314988,155.0,0.00029956,120]
[378272936,1754811315019,1027.0,0.00021,2]
[378272937,1754811334096,5130.81,0.00031456,30]
[378272938,1754811361293,160.0,0.0002,3]
[378272947,1754811425163,1686.70711163,0.000199,2]
[378272948,1754811466523,437.0123431,0.00027397,120]
[378272950,1754811525125,400.0,0.0003013,120]
[378272951,1754811528030,400.0,0.0003013,120]
[378272952,1754811586292,3032.0,0.00031456,120]
[378272953,1754811589964,185.59795936,0.0002094,2]
[378272954,1754811591023,185.59795936,0.00020973,2]
[378272955,1754811607290,155.0,0.00026078,120]
[378272956,1754811609017,155.0,0.00028686,120]
[378272957,1754811635893,1782.54242211,0.000199,2]
[378272958,1754811636832,400.0,0.0003013,120]
[378272959,1754811643947,399.36,0.00031456,30]
[378272960,1754811644535,318.84602,0.0002013,2]
[378272962,1754811654005,175.4122785,0.00020135,2]
[378272963,1754811677858,2577.1701284,0.00021,7]
[378272965,1754811690937,185.59795936,0.0002094,2]
[378272968,1754811790766,185.59795936,0.00020973,2]
[378272969,1754811808839,227.47132004,0.00020496,2]
[378272971,1754811850729,1881.40327163,0.000199,2]
[378272973,1754811869173,3000.0,0.00031456,120]
[378272974,1754811873438,2000.0,0.00031456,30]
[378272975,1754811879224,2000.0,0.00031456,30]
[378272976,1754811886855,2000.0,0.00031456,30]
[378272978,1754811906128,156.0,0.00027063,120]
[378272979,1754811907500,156.0,0.00029769,120]
[378272980,1754811909134,2000.0,0.00031458,120]
[378272981,1754811909260,17802.10492706,0.00020132,2]
[378272982,1754811909285,7097.89507294,0.00020132,2]
[378272988,1754811923752,2006.0,0.00031458,120]
[378272998,1754811945837,1000.0,0.00031458,30]
[378272999,1754811959854,515.0,0.00031458,120]
[378273002,1754811985264,1000.0,0.00031458,120]
[378273003,1754811991652,1000.0,0.00031458,30]
[378273009,1754812060134,530.0,0.00030137,120]
[378273010,1754812064118,1982.26256438,0.000199,2]
[378273012,1754812076580,156.0,0.000301,120]
[378273013,1754812077272,545.0,0.00030137,120]
[378273014,1754812077640,156.0,0.000301,120]
[378273015,1754812078723,156.0,0.000301,120]
[378273017,1754812089349,546.0,0.00030137,120]
[378273018,1754812095156,156.0,0.000301,120]
[378273020,1754812104555,156.0,0.00028,30]
[378273021,1754812104605,156.93571734,0.000222,69]
[378273022,1754812105591,5000.0,0.00021,2]
[378273023,1754812113977,4730.68056275,0.00021,2]
[378273026,1754812120078,156.0,0.00021,2]
[378273027,1754812120975,156.0,0.00021,2]
[378273028,1754812122048,5000.0,0.00021,2]
[378273029,1754812122719,156.0,0.00021,2]
[378273030,1754812135691,1403.2155,0.00027397,120]
[378273031,1754812137100,5000.0,0.00021,2]
[378273033,1754812152793,5000.0,0.00021,2]
[378273034,1754812158689,348.0,0.00030136,120]
[378273036,1754812168577,5000.0,0.00021,2]
[378273038,1754812177748,721.16179993,0.00020132,2]
[378273039,1754812177772,278.83820007,0.00020132,2]
[378273041,1754812184636,5000.0,0.00021,2]
[378273042,1754812200133,5000.0,0.00021,2]
[378273055,1754812216754,2367.23952829,0.00021,2]
[378273060,1754812232829,-1119.0,0.00021128,2]
[378273061,1754812232839,-362.572,0.00021129,2]
[378273062,1754812232848,-460.0,0.00021129,2]
[378273063,1754812232858,-4567.97,0.00021129,2]
[378273064,1754812232867,-504.06,0.00021129,2]
[378273066,1754812232877,-361.0,0.00021129,2]
[378273068,1754812232887,-390.01825121,0.00021129,2]
[378273069,1754812232896,-460.0,0.00021129,2]
[378273070,1754812232906,-473.58,0.00021129,2]
[378273071,1754812232915,-460.0,0.00021129,2]
[378273073,1754812232925,-651.97409601,0.00021129,2]
[378273075,1754812232935,-500.0,0.00021129,2]
[378273076,1754812232944,-500.0,0.00021129,2]
[378273077,1754812232954,-500.0,0.00021129,2]
[378273078,1754812232963,-650.31171918,0.00021129,2]
[378273079,1754812232973,-500.0,0.00021129,2]
[378273080,1754812232982,-2033.13,0.0002113,3]
[378273081,1754812232992,-1016.57,0.0002113,3]
[378273082,1754812233001,-508.28,0.0002113,3]
[378273083,1754812233011,-254.14,0.0002113,3]
[378273084,1754812233020,-762.45,0.0002113,3]
[378273085,1754812233030,-990.07,0.0002113,10]
[378273086,1754812233039,-825.06,0.0002113,10]
[378273087,1754812233049,-50000.0,0.0002113,2]
[378273088,1754812233059,-460.0,0.00021138,2]
[378273089,1754812233068,-460.0,0.00021138,2]
[378273091,1754812233078,-460.0,0.00021138,2]
[378273093,1754812233087,-226.18525993,0.00021138,2]
[378273095,1754812233096,-460.0,0.00021138,2]
[378273096,1754812233106,-460.0,0.00021138,2]
[378273098,1754812233116,-460.0,0.00021138,2]
[378273100,1754812233125,-460.0,0.00021138,2]
[378273102,1754812233135,-586.91,0.00021138,2]
[378273104,1754812233144,-460.0,0.00021138,2]
[378273106,1754812233154,-460.0,0.00021138,2]
[378273108,1754812233164,-460.0,0.00021138,2]
[378273110,1754812233173,-460.0,0.00021138,2]
[378273112,1754812233182,-460.0,0.00021138,2]
[378273114,1754812233192,-460.0,0.00021138,2]
[378273115,1754812233202,-375.92,0.00021138,2]
[378273117,1754812233213,-460.0,0.00021138,2]
[378273119,1754812233223,-460.0,0.00021138,2]
[378273121,1754812233232,-460.0,0.00021138,2]
[378273122,1754812233243,-460.0,0.00021138,2]
[378273123,1754812233253,-500.0,0.00021139,2]
[378273124,1754812233263,-183.58238674,0.00021139,2]
[378273125,1754812233273,-500.0,0.00021139,2]
[378273126,1754812233282,-500.0,0.00021139,2]
[378273127,1754812233292,-500.0,0.00021139,2]
[378273128,1754812233302,-500.0,0.00021139,2]
[378273129,1754812233311,-500.0,0.00021139,2]
[378273130,1754812233321,-500.0,0.00021139,2]
[378273131,1754812233331,-500.0,0.00021139,2]
[378273132,1754812233341,-500.0,0.00021139,2]
[378273133,1754812233351,-500.0,0.00021139,2]
[378273134,1754812233361,-500.0,0.00021139,2]
[378273135,1754812233371,-500.0,0.00021139,2]
[378273136,1754812233380,-500.0,0.00021139,2]
[378273137,1754812233390,-500.0,0.00021139,2]
[378273138,1754812233399,-306.93743377,0.00021139,2]
[378273139,1754812233409,-500.0,0.00021139,2]
[378273140,1754812233418,-500.0,0.00021139,2]
[378273141,1754812233428,-500.0,0.00021139,2]
[378273142,1754812233437,-500.0,0.00021139,2]
[378273143,1754812233447,-500.0,0.00021139,2]
[378273144,1754812233456,-500.0,0.00021139,2]
[378273145,1754812233466,-500.0,0.00021139,2]
[378273146,1754812233476,-600.0,0.00021139,2]
[378273147,1754812233486,-460.0,0.00021139,2]
[378273148,1754812233495,-460.0,0.00021139,2]
[378273149,1754812233506,-1970.12223633,0.0002114,2]
[378273150,1754812233515,-40105.84462744,0.0002114,2]
[378273151,1754812233527,-3616.63324996,0.0002114,2]
[378273198,1754812238754,-8730.49524801,0.0002114,2]
[378273402,1754812240700,-460.0,0.00021129,2]
[378273404,1754812240711,-205.70353678,0.0002114,2]
[378273826,1754812245125,-687.55,0.0002113,10]
[378273828,1754812245134,-11212.450003,0.0002114,2]
[378274678,1754812255170,274.018946,0.00013699,2]
[378274679,1754812255373,274.018946,0.00020187,2]
[378275760,1754812266667,200.0,0.00021,2]
[378276754,1754812277027,2313.41150047,0.000199,2]
[378278775,1754812298400,260.8863839,0.00020147,2]
[378281536,1754812330467,534.46555989,0.0001904,2]
[378283526,1754812351266,150.0,0.00031458,30]
[378286334,1754812381387,1513.81637611,0.0003013,120]
[378287896,1754812401150,210.35256253,0.00020973,2]
[378292423,1754812473727,2272.28325478,0.000199,2]
[378292427,1754812503355,1699.48,0.00023,30]
[378292430,1754812519833,156.93571734,0.000222,69]
[378292476,1754812570993,769.3882556,0.000301,120]
[378292477,1754812632529,356.31037326,0.0001904,2]
[378292478,1754812689109,200.0,0.00031448,30]
[378292479,1754812694543,2202.85165551,0.000199,2]
[378292480,1754812708257,200.0,0.00031448,30]
[378292481,1754812718102,200.0,0.00031448,30]
[378292482,1754812792355,254.78,0.00031448,30]
[378292483,1754812896180,18455.3230893,0.00020131,2]
[378292484,1754812896204,6444.6769107,0.00020131,2]
[378292485,1754812911842,5000.0,0.00031448,30]
[378292486,1754812921391,2607.37312321,0.000199,2]
[378292487,1754812934296,237.54024884,0.0001904,2]
[378292493,1754813028275,314.84,0.00031452,30]
[378292495,1754813116973,1052.411625,0.00027397,120]
[378292496,1754813141430,2518.85656536,0.000199,2]
[378292497,1754813147124,183.0792007,0.0002029,2]
[378292498,1754813152985,600.0,0.0003,120]
[378292514,1754813314393,157.673782,0.00020129,2]
[378292515,1754813342791,185.710097,0.00020129,2]
[378292516,1754813343418,189.878157,0.00030136,120]
[378292519,1754813356132,1987.43750121,0.000199,2]
[378292520,1754813420518,155.0,0.00028,30]
[378292667,1754813437630,-331.0104,0.00021029,2]
[378292668,1754813437651,-288.9426064,0.00021029,2]
[378292669,1754813437664,-157.21316528,0.00021125,2]
[378292670,1754813437734,-114.78683472,0.00021125,2]
[378292671,1754813437744,-300.0,0.00021125,2]
[378292672,1754813437755,-300.0,0.00021125,2]
[378292673,1754813437765,-264.50847937,0.00021125,2]
[378292674,1754813437778,-35.49152063,0.00021125,2]
[378292675,1754813437788,-1200.0,0.00021125,2]
[378292676,1754813437798,-151.0,0.00021126,2]
[378292677,1754813437808,-151.0,0.00021126,2]
[378292678,1754813437818,-151.0,0.00021126,2]
[378292679,1754813437827,-151.0,0.00021126,2]
[378292680,1754813437837,-151.0,0.00021126,2]
[378292681,1754813437847,-151.0,0.00021126,2]
[378292683,1754813437856,-151.0,0.00021126,2]
[378292685,1754813437866,-151.0,0.00021126,2]
[378292688,1754813437875,-151.0,0.00021126,2]
[378292690,1754813437886,-151.0,0.00021126,2]
[378292692,1754813437895,-151.0,0.00021126,2]
[378292694,1754813437904,-250.0,0.00021126,2]
[378292696,1754813437913,-250.0,0.00021126,2]
[378292697,1754813437923,-250.0,0.00021126,2]